[Event "Early-Titled-Tuesday-Blitz-October-17-2023"]
[Site "Chess.com"]
[Date "2023.10.17"]
[Round "6"]
[White "ivana_999"]
[Black "Akylbek2021"]
[Result "0-1"]
[WhiteElo "2096"]
[BlackElo "2279"]
[TimeControl "180+1"]
[EndTime "9:10:56 PDT"]
[Termination "Akylbek2021 won by resignation"]

1. d4 {[%clk 0:02:53]} 1... f6 {[%clk 0:03:00]} 2. c4 {[%clk 0:02:51.5]} 2... f5
{[%clk 0:02:56.2]} 3. Nc3 {[%clk 0:02:46.1]} 3... Nf6 {[%clk 0:02:56.8]} 4. Nf3
{[%clk 0:02:46.2]} 4... g6 {[%clk 0:02:57.2]} 5. Bg5 {[%clk 0:02:45.5]} 5... Bg7
{[%clk 0:02:57.6]} 6. e3 {[%clk 0:02:45.5]} 6... O-O {[%clk 0:02:55.8]} 7. Qb3
{[%clk 0:02:43.8]} 7... e6 {[%clk 0:02:51.3]} 8. Be2 {[%clk 0:02:40]} 8... c6
{[%clk 0:02:50.2]} 9. O-O {[%clk 0:02:28.6]} 9... d5 {[%clk 0:02:50.3]} 10. cxd5
{[%clk 0:02:28.6]} 10... exd5 {[%clk 0:02:30.6]} 11. Ne5 {[%clk 0:02:21.1]}
11... Nbd7 {[%clk 0:02:25.5]} 12. f4 {[%clk 0:02:20.6]} 12... Qb6 {[%clk
0:02:19.8]} 13. Qxb6 {[%clk 0:02:17.7]} 13... Nxb6 {[%clk 0:02:08.6]} 14. b3
{[%clk 0:02:14.2]} 14... Ne4 {[%clk 0:02:07.3]} 15. Nxe4 {[%clk 0:02:13.5]}
15... fxe4 {[%clk 0:02:07.3]} 16. Be7 {[%clk 0:02:12.7]} 16... Re8 {[%clk
0:02:04.2]} 17. Ba3 {[%clk 0:02:12.4]} 17... a5 {[%clk 0:01:54.5]} 18. Bc5
{[%clk 0:02:02.5]} 18... Nd7 {[%clk 0:01:54]} 19. Nxd7 {[%clk 0:02:02.8]} 19...
Bxd7 {[%clk 0:01:54.9]} 20. a4 {[%clk 0:02:00.8]} 20... h5 {[%clk 0:01:47.2]}
21. h3 {[%clk 0:01:57.8]} 21... h4 {[%clk 0:01:43]} 22. Bg4 {[%clk 0:01:49.8]}
22... Bf5 {[%clk 0:01:36.4]} 23. g3 {[%clk 0:01:42.6]} 23... Bf6 {[%clk
0:01:26.9]} 24. Kg2 {[%clk 0:01:38.5]} 24... hxg3 {[%clk 0:01:16.2]} 25. Kxg3
{[%clk 0:01:34.6]} 25... Kf7 {[%clk 0:01:16.4]} 26. Bxf5 {[%clk 0:01:31.9]}
26... gxf5 {[%clk 0:01:15.4]} 27. Kh2 {[%clk 0:01:32]} 27... Rg8 {[%clk
0:01:00.1]} 28. Rg1 {[%clk 0:01:31.6]} 28... Bh4 {[%clk 0:00:59.4]} 29. Ra2
{[%clk 0:01:18]} 29... Rxg1 {[%clk 0:00:50.3]} 30. Kxg1 {[%clk 0:01:18.9]} 30...
Rg8+ {[%clk 0:00:50.7]} 31. Rg2 {[%clk 0:01:18.2]} 31... Rxg2+ {[%clk
0:00:35.3]} 32. Kxg2 {[%clk 0:01:19.1]} 32... Bd8 {[%clk 0:00:35.7]} 33. Bd6
{[%clk 0:01:08]} 33... Ke6 {[%clk 0:00:33.9]} 34. Be5 {[%clk 0:01:05.4]} 34...
Be7 {[%clk 0:00:22.8]} 35. Kg3 {[%clk 0:00:54.7]} 35... Bb4 {[%clk 0:00:21.3]}
36. h4 {[%clk 0:00:55.2]} 36... Be1+ {[%clk 0:00:19.2]} 37. Kh3 {[%clk
0:00:54.2]} 37... Bf2 {[%clk 0:00:19.5]} 38. h5 {[%clk 0:00:53]} 38... Kf7
{[%clk 0:00:20]} 39. Bc7 {[%clk 0:00:47.3]} 39... Bxe3 {[%clk 0:00:18.3]} 40.
Bxa5 {[%clk 0:00:47.5]} 40... Bxd4 {[%clk 0:00:16]} 41. Be1 {[%clk 0:00:45]}
41... Be3 {[%clk 0:00:14.6]} 42. Kg3 {[%clk 0:00:44.4]} 42... d4 {[%clk
0:00:14.4]} 43. b4 {[%clk 0:00:42.2]} 43... d3 {[%clk 0:00:14.2]} 44. b5 {[%clk
0:00:37.6]} 44... cxb5 {[%clk 0:00:14.2]} 45. axb5 {[%clk 0:00:38.5]} 45... d2
{[%clk 0:00:14.8]} 46. Bxd2 {[%clk 0:00:38.7]} 46... Bxd2 {[%clk 0:00:15.7]} 47.
Kf2 {[%clk 0:00:38.4]} 47... Bxf4 {[%clk 0:00:15.2]} 0-1

[Event "Early-Titled-Tuesday-Blitz-October-17-2023"]
[Site "Chess.com"]
[Date "2023.10.17"]
[Round "6"]
[White "Magila31"]
[Black "Bilan_Danila"]
[Result "0-1"]
[WhiteElo "2369"]
[BlackElo "2584"]
[TimeControl "180+1"]
[EndTime "9:10:59 PDT"]
[Termination "Bilan_Danila won on time"]

1. d4 {[%clk 0:02:57.7]} 1... d5 {[%clk 0:02:58.5]} 2. c4 {[%clk 0:02:56.9]}
2... c6 {[%clk 0:02:58.3]} 3. Nf3 {[%clk 0:02:56.2]} 3... Nf6 {[%clk 0:02:58.4]}
4. Nc3 {[%clk 0:02:55.5]} 4... e6 {[%clk 0:02:58.1]} 5. e3 {[%clk 0:02:54.9]}
5... Nbd7 {[%clk 0:02:58.2]} 6. Qc2 {[%clk 0:02:53.7]} 6... Bd6 {[%clk 0:02:58]}
7. Bd3 {[%clk 0:02:51.7]} 7... O-O {[%clk 0:02:56.2]} 8. O-O {[%clk 0:02:47.6]}
8... dxc4 {[%clk 0:02:55.9]} 9. Bxc4 {[%clk 0:02:46.9]} 9... e5 {[%clk
0:02:56.2]} 10. h3 {[%clk 0:02:44.9]} 10... Qe7 {[%clk 0:02:42.1]} 11. Bb3
{[%clk 0:02:43.9]} 11... h6 {[%clk 0:02:07.9]} 12. e4 {[%clk 0:02:23.7]} 12...
exd4 {[%clk 0:02:00.5]} 13. Nxd4 {[%clk 0:02:23.1]} 13... Nc5 {[%clk 0:01:39]}
14. Bc4 {[%clk 0:02:13.2]} 14... Qe5 {[%clk 0:01:23.9]} 15. Nf3 {[%clk
0:02:12.3]} 15... Qh5 {[%clk 0:01:13.7]} 16. b4 {[%clk 0:01:17.8]} 16... Bxh3
{[%clk 0:00:45.9]} 17. e5 {[%clk 0:01:00.4]} 17... Qg4 {[%clk 0:00:41.6]} 18.
Ne1 {[%clk 0:00:54.4]} 18... Bxe5 {[%clk 0:00:28.2]} 19. Be2 {[%clk 0:00:43.6]}
19... Qxb4 {[%clk 0:00:22.2]} 20. Bd2 {[%clk 0:00:42.8]} 20... Be6 {[%clk
0:00:09]} 21. Rb1 {[%clk 0:00:25.7]} 21... Qh4 {[%clk 0:00:09.1]} 22. Nf3 {[%clk
0:00:25.4]} 22... Qh5 {[%clk 0:00:08.2]} 23. Nxe5 {[%clk 0:00:24.6]} 23... Qxe5
{[%clk 0:00:08.1]} 24. Be3 {[%clk 0:00:22.8]} 24... Bf5 {[%clk 0:00:08.2]} 25.
Qb2 {[%clk 0:00:09.5]} 25... Bxb1 {[%clk 0:00:08.2]} 26. Rxb1 {[%clk 0:00:09.5]}
26... b6 {[%clk 0:00:08.6]} 27. Bf3 {[%clk 0:00:06.1]} 27... Rac8 {[%clk
0:00:08]} 28. Qc2 {[%clk 0:00:03.9]} 28... Rfd8 {[%clk 0:00:06.7]} 29. Ne2
{[%clk 0:00:03.8]} 29... Nfe4 {[%clk 0:00:06.8]} 30. Bf4 {[%clk 0:00:03.6]}
30... Qe6 {[%clk 0:00:06.8]} 0-1

[Event "Early-Titled-Tuesday-Blitz-October-17-2023"]
[Site "Chess.com"]
[Date "2023.10.17"]
[Round "6"]
[White "Emeraldddd"]
[Black "Rutricks"]
[Result "0-1"]
[WhiteElo "2536"]
[BlackElo "2668"]
[TimeControl "180+1"]
[EndTime "9:11:01 PDT"]
[Termination "Rutricks won on time"]

1. e4 {[%clk 0:03:00.9]} 1... g6 {[%clk 0:03:00.9]} 2. d4 {[%clk 0:03:00]} 2...
Bg7 {[%clk 0:03:01.2]} 3. c3 {[%clk 0:02:59.7]} 3... c6 {[%clk 0:03:01.5]} 4. f4
{[%clk 0:03:00.4]} 4... d5 {[%clk 0:03:02.4]} 5. e5 {[%clk 0:03:00.6]} 5... f6
{[%clk 0:03:02.9]} 6. Bd3 {[%clk 0:03:00]} 6... Nh6 {[%clk 0:03:03.5]} 7. Nf3
{[%clk 0:02:59.7]} 7... Bg4 {[%clk 0:03:04.2]} 8. h3 {[%clk 0:02:59.1]} 8...
Bxf3 {[%clk 0:03:04.7]} 9. Qxf3 {[%clk 0:02:59.9]} 9... O-O {[%clk 0:03:04.8]}
10. Qe2 {[%clk 0:02:54.9]} 10... fxe5 {[%clk 0:03:04.1]} 11. dxe5 {[%clk
0:02:50]} 11... e6 {[%clk 0:03:01.2]} 12. O-O {[%clk 0:02:43]} 12... Nd7 {[%clk
0:03:01.2]} 13. Be3 {[%clk 0:02:42.8]} 13... Qe7 {[%clk 0:03:00.8]} 14. Nd2
{[%clk 0:02:39.9]} 14... Nc5 {[%clk 0:02:53.6]} 15. Bc2 {[%clk 0:02:39.4]} 15...
a5 {[%clk 0:02:46.8]} 16. g4 {[%clk 0:02:34.8]} 16... b6 {[%clk 0:02:44.3]} 17.
Kh1 {[%clk 0:02:30.9]} 17... Qh4 {[%clk 0:02:43.9]} 18. Qg2 {[%clk 0:02:23.4]}
18... Qe7 {[%clk 0:02:25.5]} 19. Rf3 {[%clk 0:02:02.1]} 19... g5 {[%clk
0:02:22]} 20. Raf1 {[%clk 0:01:57.3]} 20... gxf4 {[%clk 0:02:22.1]} 21. Bxf4
{[%clk 0:01:58.2]} 21... Nf7 {[%clk 0:02:22.4]} 22. Qg3 {[%clk 0:01:50.9]} 22...
Nd7 {[%clk 0:02:22.9]} 23. Re3 {[%clk 0:01:41.8]} 23... Nh8 {[%clk 0:01:38]} 24.
Qe1 {[%clk 0:00:20.4]} 24... Rf7 {[%clk 0:01:28.3]} 25. Bg3 {[%clk 0:00:17.9]}
25... Rxf1+ {[%clk 0:01:24.5]} 26. Nxf1 {[%clk 0:00:18.8]} 26... Rf8 {[%clk
0:01:23.3]} 27. Nh2 {[%clk 0:00:17.9]} 27... Bh6 {[%clk 0:01:02.5]} 28. Rf3
{[%clk 0:00:18.1]} 28... Rf7 {[%clk 0:00:55.3]} 29. Qf1 {[%clk 0:00:17.6]} 29...
Qf8 {[%clk 0:00:53.8]} 30. Rxf7 {[%clk 0:00:16.3]} 30... Nxf7 {[%clk 0:00:54.5]}
31. Qd3 {[%clk 0:00:14.2]} 31... Qg7 {[%clk 0:00:53.9]} 32. Nf3 {[%clk
0:00:12.2]} 32... Kf8 {[%clk 0:00:48.9]} 33. Qa6 {[%clk 0:00:11.6]} 33... Ng5
{[%clk 0:00:28.2]} 34. Qc8+ {[%clk 0:00:10.6]} 34... Ke7 {[%clk 0:00:28.5]} 35.
Bh4 {[%clk 0:00:07.7]} 35... Nxe5 {[%clk 0:00:20.9]} 36. Qc7+ {[%clk 0:00:07.7]}
36... Nd7 {[%clk 0:00:20.9]} 37. Qf4 {[%clk 0:00:05.6]} 37... Qf6 {[%clk
0:00:19.9]} 38. Bxg5 {[%clk 0:00:05.7]} 38... Bxg5 {[%clk 0:00:18.9]} 39. Qxg5
{[%clk 0:00:00.2]} 39... h6 {[%clk 0:00:19.7]} 0-1

[Event "Early-Titled-Tuesday-Blitz-October-17-2023"]
[Site "Chess.com"]
[Date "2023.10.17"]
[Round "6"]
[White "Chessbard1972"]
[Black "JiiHart"]
[Result "1-0"]
[WhiteElo "2366"]
[BlackElo "2195"]
[TimeControl "180+1"]
[EndTime "9:11:02 PDT"]
[Termination "Chessbard1972 won on time"]

1. d4 {[%clk 0:03:00.9]} 1... d5 {[%clk 0:02:59.3]} 2. c4 {[%clk 0:03:00.6]}
2... c5 {[%clk 0:02:59.4]} 3. e3 {[%clk 0:02:59.4]} 3... Nf6 {[%clk 0:02:57.2]}
4. Nf3 {[%clk 0:02:58.6]} 4... e6 {[%clk 0:02:56.2]} 5. a3 {[%clk 0:02:56.6]}
5... a6 {[%clk 0:02:48.2]} 6. b3 {[%clk 0:02:56.1]} 6... Nc6 {[%clk 0:02:38.9]}
7. Bb2 {[%clk 0:02:54.5]} 7... dxc4 {[%clk 0:02:24.7]} 8. bxc4 {[%clk
0:02:52.5]} 8... Be7 {[%clk 0:01:58.5]} 9. Bd3 {[%clk 0:02:50.7]} 9... O-O
{[%clk 0:01:52.3]} 10. O-O {[%clk 0:02:50.5]} 10... b6 {[%clk 0:01:40.6]} 11.
Nc3 {[%clk 0:02:49.2]} 11... Bb7 {[%clk 0:01:37]} 12. d5 {[%clk 0:02:46.6]}
12... exd5 {[%clk 0:01:28.4]} 13. cxd5 {[%clk 0:02:43.2]} 13... Na5 {[%clk
0:01:25.3]} 14. e4 {[%clk 0:02:40.8]} 14... c4 {[%clk 0:01:21.6]} 15. Bc2 {[%clk
0:02:40.3]} 15... Re8 {[%clk 0:01:05.7]} 16. Nd4 {[%clk 0:02:34.7]} 16... Bc5
{[%clk 0:00:51.8]} 17. Re1 {[%clk 0:02:26]} 17... b5 {[%clk 0:00:41.7]} 18. h3
{[%clk 0:02:20]} 18... Qb6 {[%clk 0:00:40.4]} 19. Nb1 {[%clk 0:02:07.2]} 19...
Rad8 {[%clk 0:00:38.3]} 20. Bc3 {[%clk 0:01:56]} 20... Nxd5 {[%clk 0:00:29.8]}
21. exd5 {[%clk 0:01:51.4]} 21... Rxe1+ {[%clk 0:00:29.4]} 22. Qxe1 {[%clk
0:01:49.9]} 22... Bxd4 {[%clk 0:00:29.7]} 23. Qe4 {[%clk 0:01:34.8]} 23... Bxf2+
{[%clk 0:00:21.8]} 24. Kf1 {[%clk 0:01:33.8]} 24... g6 {[%clk 0:00:14.6]} 25.
Qe5 {[%clk 0:01:30.3]} 25... f6 {[%clk 0:00:14]} 26. Qf4 {[%clk 0:00:45.6]}
26... Be3 {[%clk 0:00:12.8]} 27. Qxf6 {[%clk 0:00:41.5]} 27... Qxf6+ {[%clk
0:00:12.6]} 28. Bxf6 {[%clk 0:00:41.7]} 28... Rf8 {[%clk 0:00:12.8]} 29. Ke2
{[%clk 0:00:42.1]} 29... Rxf6 {[%clk 0:00:12.9]} 30. Kxe3 {[%clk 0:00:41.5]}
30... Bxd5 {[%clk 0:00:13.4]} 31. Nc3 {[%clk 0:00:41.3]} 31... Bxg2 {[%clk
0:00:13.1]} 32. Be4 {[%clk 0:00:37.4]} 32... Bxe4 {[%clk 0:00:12.4]} 33. Nxe4
{[%clk 0:00:36.7]} 33... Re6 {[%clk 0:00:11]} 34. Rd1 {[%clk 0:00:35.1]} 34...
Nb3 {[%clk 0:00:10.3]} 35. Rd8+ {[%clk 0:00:33.4]} 35... Kg7 {[%clk 0:00:10.7]}
36. Rd7+ {[%clk 0:00:33.5]} 36... Kh6 {[%clk 0:00:10.8]} 37. Rc7 {[%clk
0:00:22.7]} 37... a5 {[%clk 0:00:06.9]} 38. Kf4 {[%clk 0:00:18.8]} 1-0

[Event "Early-Titled-Tuesday-Blitz-October-17-2023"]
[Site "Chess.com"]
[Date "2023.10.17"]
[Round "6"]
[White "sokidze"]
[Black "Anton_Demchenko"]
[Result "0-1"]
[WhiteElo "2786"]
[BlackElo "3022"]
[TimeControl "180+1"]
[EndTime "9:11:04 PDT"]
[Termination "Anton_Demchenko won by resignation"]

1. d4 {[%clk 0:03:00.9]} 1... Nf6 {[%clk 0:02:59.7]} 2. c4 {[%clk 0:03:00.7]}
2... d6 {[%clk 0:02:59.9]} 3. Nf3 {[%clk 0:02:59]} 3... Nc6 {[%clk 0:02:59.8]}
4. d5 {[%clk 0:02:55.1]} 4... Ne5 {[%clk 0:02:59.5]} 5. Nxe5 {[%clk 0:02:47.7]}
5... dxe5 {[%clk 0:03:00.4]} 6. Nc3 {[%clk 0:02:48]} 6... e6 {[%clk 0:03:01]} 7.
e4 {[%clk 0:02:47.7]} 7... Bc5 {[%clk 0:03:01.6]} 8. Be2 {[%clk 0:02:44.9]} 8...
O-O {[%clk 0:03:01.5]} 9. O-O {[%clk 0:02:45]} 9... c6 {[%clk 0:03:02.1]} 10.
dxc6 {[%clk 0:02:28.3]} 10... bxc6 {[%clk 0:03:01.6]} 11. Qc2 {[%clk 0:02:28.5]}
11... Bb7 {[%clk 0:02:47.3]} 12. b3 {[%clk 0:02:23.8]} 12... Bd4 {[%clk
0:02:46.1]} 13. Bb2 {[%clk 0:02:08.8]} 13... Qc7 {[%clk 0:02:35.5]} 14. Bf3
{[%clk 0:02:03.1]} 14... Rfd8 {[%clk 0:02:32.7]} 15. Rad1 {[%clk 0:01:48.1]}
15... a6 {[%clk 0:02:27.3]} 16. Na4 {[%clk 0:01:40.2]} 16... c5 {[%clk
0:02:18.3]} 17. Ba3 {[%clk 0:01:37.8]} 17... Nd7 {[%clk 0:02:07.4]} 18. Rd2
{[%clk 0:01:27.7]} 18... Bc6 {[%clk 0:02:07.7]} 19. Nc3 {[%clk 0:01:25.9]} 19...
Nf6 {[%clk 0:02:01.9]} 20. Ne2 {[%clk 0:01:09.8]} 20... Qb7 {[%clk 0:01:47.2]}
21. Nxd4 {[%clk 0:01:03.1]} 21... cxd4 {[%clk 0:01:48.1]} 22. Re1 {[%clk
0:01:00.9]} 22... a5 {[%clk 0:01:47.8]} 23. Qd3 {[%clk 0:00:53.2]} 23... h6
{[%clk 0:01:41.3]} 24. g3 {[%clk 0:00:48.7]} 24... Nd7 {[%clk 0:01:37.2]} 25.
Bg2 {[%clk 0:00:45.1]} 25... Qb6 {[%clk 0:01:30.4]} 26. Be7 {[%clk 0:00:35.1]}
26... Re8 {[%clk 0:01:25.7]} 27. Bd6 {[%clk 0:00:34.1]} 27... Nc5 {[%clk
0:01:24.9]} 28. Qe2 {[%clk 0:00:23.6]} 28... f6 {[%clk 0:01:05.3]} 29. f4 {[%clk
0:00:23.6]} 29... exf4 {[%clk 0:01:05.9]} 30. gxf4 {[%clk 0:00:23.8]} 30... e5
{[%clk 0:01:04.4]} 31. fxe5 {[%clk 0:00:18.5]} 31... fxe5 {[%clk 0:01:05.3]} 32.
Qh5 {[%clk 0:00:16.6]} 32... d3 {[%clk 0:00:52.5]} 33. Kh1 {[%clk 0:00:08.7]}
33... Nxe4 {[%clk 0:00:43.6]} 34. c5 {[%clk 0:00:03.6]} 34... Qb7 {[%clk
0:00:43.7]} 35. Bxe4 {[%clk 0:00:03.9]} 35... Bxe4+ {[%clk 0:00:43.8]} 36. Kg1
{[%clk 0:00:04.8]} 36... Re6 {[%clk 0:00:43.2]} 37. Rf2 {[%clk 0:00:03.2]} 37...
Rg6+ {[%clk 0:00:43]} 38. Kf1 {[%clk 0:00:03.3]} 38... Bg2+ {[%clk 0:00:39.8]}
39. Kg1 {[%clk 0:00:03.8]} 39... Kh7 {[%clk 0:00:34]} 40. c6 {[%clk 0:00:01.5]}
40... Bxc6+ {[%clk 0:00:32.7]} 41. Kf1 {[%clk 0:00:01.7]} 41... Rxd6 {[%clk
0:00:31.1]} 0-1

[Event "Early-Titled-Tuesday-Blitz-October-17-2023"]
[Site "Chess.com"]
[Date "2023.10.17"]
[Round "6"]
[White "profedechess93"]
[Black "ChainedDowntohell"]
[Result "1-0"]
[WhiteElo "2612"]
[BlackElo "2458"]
[TimeControl "180+1"]
[EndTime "9:11:05 PDT"]
[Termination "profedechess93 won on time"]

1. e4 {[%clk 0:03:00.9]} 1... c5 {[%clk 0:02:59.9]} 2. Nf3 {[%clk 0:03:00.7]}
2... d6 {[%clk 0:02:59.5]} 3. Bb5+ {[%clk 0:03:00.7]} 3... Nc6 {[%clk
0:02:58.5]} 4. O-O {[%clk 0:03:00.3]} 4... Bd7 {[%clk 0:02:58.3]} 5. Re1 {[%clk
0:03:00.6]} 5... Nf6 {[%clk 0:02:57.7]} 6. c3 {[%clk 0:02:59.9]} 6... a6 {[%clk
0:02:55.9]} 7. Bf1 {[%clk 0:03:00.5]} 7... Bg4 {[%clk 0:02:43.6]} 8. h3 {[%clk
0:03:00.7]} 8... Bxf3 {[%clk 0:02:43.5]} 9. Qxf3 {[%clk 0:03:01.6]} 9... g6
{[%clk 0:02:42.9]} 10. d3 {[%clk 0:03:01.9]} 10... Bg7 {[%clk 0:02:42.6]} 11.
Be3 {[%clk 0:03:02.5]} 11... Nd7 {[%clk 0:02:38.8]} 12. Qd1 {[%clk 0:03:02.7]}
12... Qc7 {[%clk 0:02:32]} 13. Nd2 {[%clk 0:03:01.3]} 13... O-O {[%clk
0:02:30.9]} 14. f4 {[%clk 0:03:00.3]} 14... b5 {[%clk 0:02:29.9]} 15. a3 {[%clk
0:03:00.3]} 15... a5 {[%clk 0:02:27]} 16. Nf3 {[%clk 0:02:44.8]} 16... b4 {[%clk
0:02:21.8]} 17. d4 {[%clk 0:02:44.9]} 17... e6 {[%clk 0:02:18.4]} 18. Rc1 {[%clk
0:02:21.9]} 18... bxc3 {[%clk 0:02:12.2]} 19. bxc3 {[%clk 0:02:20.7]} 19... a4
{[%clk 0:02:11]} 20. f5 {[%clk 0:02:05.5]} 20... exf5 {[%clk 0:01:55.2]} 21.
exf5 {[%clk 0:02:05.6]} 21... Rfe8 {[%clk 0:01:48.8]} 22. fxg6 {[%clk
0:02:00.3]} 22... hxg6 {[%clk 0:01:48.1]} 23. Bc4 {[%clk 0:02:00.3]} 23... Nb6
{[%clk 0:01:46.2]} 24. Ba2 {[%clk 0:01:57.9]} 24... c4 {[%clk 0:01:41.4]} 25.
Ng5 {[%clk 0:01:16.6]} 25... Nd5 {[%clk 0:01:27.5]} 26. Bd2 {[%clk 0:01:14.7]}
26... Rxe1+ {[%clk 0:01:04]} 27. Qxe1 {[%clk 0:01:15.6]} 27... Na5 {[%clk
0:01:03.4]} 28. Qe4 {[%clk 0:01:12.9]} 28... Qb7 {[%clk 0:00:55.1]} 29. Rf1
{[%clk 0:01:02.2]} 29... Nf6 {[%clk 0:00:13.6]} 30. Qh4 {[%clk 0:00:59.1]} 30...
Nb3 {[%clk 0:00:08.2]} 31. Bf4 {[%clk 0:00:43.5]} 31... Qd5 {[%clk 0:00:07.8]}
32. Bh2 {[%clk 0:00:40.9]} 32... Re8 {[%clk 0:00:07]} 33. Qf4 {[%clk 0:00:32.7]}
33... Re2 {[%clk 0:00:05.8]} 34. Nf3 {[%clk 0:00:27.8]} 34... Ne4 {[%clk
0:00:03.1]} 35. Bb1 {[%clk 0:00:27.1]} 35... Nxc3 {[%clk 0:00:02.7]} 36. Qh4
{[%clk 0:00:18.6]} 36... Nxb1 {[%clk 0:00:02.5]} 37. Qd8+ {[%clk 0:00:18.4]}
37... Kh7 {[%clk 0:00:02.4]} 38. Ng5+ {[%clk 0:00:19]} 38... Qxg5 {[%clk
0:00:01.3]} 39. Qxg5 {[%clk 0:00:18.2]} 1-0

[Event "Early-Titled-Tuesday-Blitz-October-17-2023"]
[Site "Chess.com"]
[Date "2023.10.17"]
[Round "6"]
[White "GM_Huschenbeth"]
[Black "viktorgen2021"]
[Result "1-0"]
[WhiteElo "2557"]
[BlackElo "2405"]
[TimeControl "180+1"]
[EndTime "9:11:10 PDT"]
[Termination "GM_Huschenbeth won by resignation"]

1. e4 {[%clk 0:03:00.9]} 1... g6 {[%clk 0:02:55.1]} 2. d4 {[%clk 0:03:00.5]}
2... Bg7 {[%clk 0:02:55]} 3. Nf3 {[%clk 0:02:58.1]} 3... d6 {[%clk 0:02:55.1]}
4. Bd3 {[%clk 0:02:58.1]} 4... Nf6 {[%clk 0:02:55.6]} 5. O-O {[%clk 0:02:58.2]}
5... Nc6 {[%clk 0:02:56.2]} 6. c3 {[%clk 0:02:57.5]} 6... O-O {[%clk 0:02:56.4]}
7. h3 {[%clk 0:02:57.1]} 7... e5 {[%clk 0:02:56.9]} 8. Re1 {[%clk 0:02:56.4]}
8... Re8 {[%clk 0:02:57.1]} 9. d5 {[%clk 0:02:53.7]} 9... Nb8 {[%clk 0:02:55.9]}
10. c4 {[%clk 0:02:53.7]} 10... c5 {[%clk 0:02:55]} 11. Nc3 {[%clk 0:02:45.7]}
11... Nh5 {[%clk 0:02:53.5]} 12. Be3 {[%clk 0:02:43.8]} 12... Nf4 {[%clk
0:02:53.2]} 13. Bf1 {[%clk 0:02:42.9]} 13... Rf8 {[%clk 0:02:53.2]} 14. a3
{[%clk 0:02:40.1]} 14... f5 {[%clk 0:02:46.2]} 15. Bxf4 {[%clk 0:02:31.5]} 15...
exf4 {[%clk 0:02:45.7]} 16. e5 {[%clk 0:02:32]} 16... dxe5 {[%clk 0:02:31.2]}
17. Nxe5 {[%clk 0:02:32.9]} 17... Nd7 {[%clk 0:02:26.3]} 18. Nd3 {[%clk
0:02:20.8]} 18... Qh4 {[%clk 0:02:20.4]} 19. Qd2 {[%clk 0:02:11.9]} 19... g5
{[%clk 0:02:11.5]} 20. d6 {[%clk 0:02:10.9]} 20... Nf6 {[%clk 0:01:52.3]} 21.
Re7 {[%clk 0:02:09.6]} 21... Bh6 {[%clk 0:01:46.8]} 22. Ne5 {[%clk 0:01:25.9]}
22... g4 {[%clk 0:01:34.3]} 23. Nd5 {[%clk 0:01:25.7]} 23... Ne4 {[%clk
0:01:29.3]} 24. Qc2 {[%clk 0:01:12.8]} 24... f3 {[%clk 0:00:48.4]} 25. gxf3
{[%clk 0:00:54.4]} 25... gxh3 {[%clk 0:00:32.8]} 26. fxe4 {[%clk 0:00:50.4]}
26... h2+ {[%clk 0:00:31.1]} 27. Kh1 {[%clk 0:00:49.8]} 27... fxe4 {[%clk
0:00:30.2]} 28. Bg2 {[%clk 0:00:44.6]} 28... Bf5 {[%clk 0:00:25.7]} 29. Rxb7
{[%clk 0:00:36.8]} 29... e3 {[%clk 0:00:24.7]} 30. Ne7+ {[%clk 0:00:36.2]} 30...
Qxe7 {[%clk 0:00:23.8]} 31. dxe7 {[%clk 0:00:34.8]} 31... Bxc2 {[%clk
0:00:24.1]} 32. exf8=Q+ {[%clk 0:00:33.4]} 32... Rxf8 {[%clk 0:00:23.8]} 33.
Bd5+ {[%clk 0:00:25.6]} 33... Kh8 {[%clk 0:00:23.5]} 34. Nf7+ {[%clk 0:00:25.8]}
34... Kg7 {[%clk 0:00:24.1]} 35. fxe3 {[%clk 0:00:22.7]} 35... Bxe3 {[%clk
0:00:20.6]} 36. Re1 {[%clk 0:00:19.5]} 36... Bd4 {[%clk 0:00:19.1]} 37. Kxh2
{[%clk 0:00:18.1]} 37... Kf6 {[%clk 0:00:14.1]} 38. Rf1+ {[%clk 0:00:17.4]}
38... Kg6 {[%clk 0:00:13.8]} 39. Re1 {[%clk 0:00:12]} 39... Bf2 {[%clk
0:00:09.1]} 40. Re2 {[%clk 0:00:11.8]} 40... Bd4 {[%clk 0:00:06.4]} 41. Rxc2
{[%clk 0:00:11.4]} 1-0